Workbook

Sheet HOME
C1: 2024 New Construction Application v1
C2: PNM Business Energy Efficiency Programs
A3: Why improve energy efficiency?
B4: Improves profitability by cutting operating costs | E4: Distinguishes your business as an energy efficiency advocate within our community | H4: Qualifies your project for rebates that can help cover upgrade costs
A6: Application Process | G6: Contact Our Team
A7: 1. | B7: Submit a Pre-Notification Application to reserve funding (if required). | G7: Address:
G8: 320 Gold Avenue SW, Suite 500 Albuquerque, NM 87102
A10: 2. | B10: Install the qualified technology. | G10: Main Phone:
G11: (505) 938-9400
A12: 3. | B12: Complete, sign, and submit a Final Application with all required documentation within 6 months of project completion. | G12: Email:
G13: energyefficiency@pnm.com
G14: Website:
G15: www.pnmenergyefficiency.com
A16: 4. | B16: The incentive check will be sent 4 to 6 weeks after approval of the Final Application.

Sheet Applicant Info
D1: APPLICANT INFORMATION | J1: For office use only:
J2: Application # | K2: Revision #
A4: Application Type: | G4: Check ONE box below:*
C6: New Construction | H6: Pre-Notification | J6: Date | P6: =IF(G6>0,"Yes",) -> 0
H7: or | O7: New pre notification checkbox flag:
H8: Final Application | J8: Date | O8: FALSE
P9: FALSE
A10: Customer Information* | O10: Multifacility checkbox flag:
A11: PNM Account Number where measures installed | O11: FALSE
C13: This Application represents multiple accounts / premises | G13: 1. Enter number of Accounts / Premises -------> | K13: _________ | N13: =is -> 
G14: 2. If yes: Complete Multi-Facility Worksheet -------> CLICK HERE
A15: Building Type*
M16: Business Type | O16: Tax Status | Q16: State
A17: Name of Company* | G17: Name Exactly as it Appears on Your Utility Bill* | M17: Assembly | O17: Corporation (Inc, PC, etc.) | Q17: AL
M18: College/University | O18: Government Agency | Q18: AK
A19: Name of Contact Person* | G19: Title* | M19: Grocery | O19: Individual | Q19: AZ
M20: Heavy Industry | O20: Partnership | Q20: AR
A21: Telephone #* | G21: Fax # | M21: Hotel/Motel Common Areas | O21: Exempt | Q21: CA
A22: Email Address* | M22: Light Industry | Q22: CO
A23: Address Where Measures Installed* | M23: Medical | Q23: CT
A24: City Where Measures Installed* | G24: State* | I24: =IF(E24="","","NM") ->  | J24: Zip* | M24: Office | Q24: DE
A25: Mailing Address* | M25: Restaurant | Q25: FL
A26: City* | G26: State* | J26: Zip* | M26: Retail/Service | Q26: GA
A27: Taxpayer ID Number (SSN/FEIN)* | G27: Tax Status* | M27: K-12 School | Q27: HI
A28: Contractor Information | M28: Warehouse | Q28: ID
A29: Contracting Company* | M29: Dwelling Unit | Q29: IL
A30: Contractor Name* | G30: Contractor Phone Number* | M30: Miscellaneous | Q30: IN
A31: Contractor Email Address* | Q31: IA
A32: Contractor Mailing Address* | Q32: KS
A33: City* | G33: State* | J33: Zip* | Q33: KY
A34: Third Party Payment Release | Q34: LA
Q35: ME
C36: I request that the incentive check be sent to the third party below | H36: Check here if the third party payee is the contractor (Contractor must be a PNM Authorized Contractor to be eligible for third party payment) | Q36: MD
Q37: MA
A38: Name of Third Party* | Q38: MI
A39: Name of Third Party Contact Person* | G39: Title* | Q39: MN
Q40: MS
A41: Third Party Phone #* | G41: Fax # | Q41: MO
A42: Third Party Mailing Address* | Q42: MT
A43: Third Party City* | G43: State* | J43: Zip* | Q43: NE
A44: Third Party Email Address* | Q44: NV
A45: Third Party Taxpayer ID # (SSN/FEIN)* | G45: Tax Status* | Q45: NH
A46: Incentive Summary | Q46: NJ
A47: Total Incentive Requested | F47: Total Project Cost PRE-TAX * REQUIRED * | J47: =IF(AND(O8=TRUE,P9=TRUE),"Project Completion Date",IF(O8=TRUE, "Estimated Project Completion Date", "Project Completion Date")) -> Project Completion Date | Q47: NM
A48: =MIN(F63, F48*0.5,400000) -> 0 | Q48: NY
Q49: NC
A50: AGREEMENT | Q50: ND
A51: I understand that in the event funds are reserved based on a pre-notification, the payment of incentives will be based upon the Final Application and program terms and conditions, and that the PNM Business Energy Efficiency program is subject to change or cancellation at any time and without notice. PNM is not responsible for any lost, late, stolen, ineligible, illegible, misdirected or postage-due mail. All completed submissions become the property of PNM and will not be returned. PNM makes no guarantees about the availability of products or rebate forms. By participating in the PNM Business Energy Efficiency program, customers agree to waive any claims and release PNM from any liability for damages of any kind. Rebates are funded by a charge on PNM electric customer bills. | Q51: OH
A52: I have read and understand the program requirements, measure specifications, and Terms & Conditions set forth in this application and agree to abide by those requirements. Furthermore, I concur that I must meet all eligibility criteria in order to be paid under this program. | Q52: OK
A53: As an eligible customer, I verify that the signature below is my own and that the information is correct. I am requesting consideration for participation under this program. By signing this agreement I attest that I understand and agree to abide by all Program terms and conditions. | Q53: OR
A54: Customer Signature (PNM Customer) | H54: Third Party Signature | Q54: PA
F55: Please sign by hand or via DocuSign® | Q55: RI
A56: Print Customer Name | H56: Print Third Party Name | Q56: SC
Q57: SD
A58: Date | H58: Date | Q58: TN
Q59: TX
Q60: UT
Q61: VT
Q62: VA
B63: For Office Use Only | F63: =SUM(F64:F71) -> 0 | Q63: WA
B64: NC Interior Lighting Incentive | F64: ='Interior Lighting'!H23 -> 0 | Q64: WI
B65: NC Exterior Lighting Incentive | F65: ='Exterior Lighting'!L24 -> 0 | Q65: WV
B66: HVAC Incentive | F66: =HVAC!H79 -> 0 | Q66: WY
B67: Food Service Incentive | F67: ='Food Service'!J42 -> 0
B68: Pool Pumps Incentive | F68: ='Pool Pumps'!J10 -> 0
B69: Industrial Incentives | F69: =Industrial!I44 -> 0
B70: Custom Incentive | F70: =Custom!I51 -> 0
B71: NC Whole Building Incentives | F71: ='NC Whole Bldg'!I55 -> 0

Sheet Checklist
A2: 1) Verify
B3: Submit application within 6 months of project completion, and include the following components:
A4: 2) Application Information Form
A5: CUSTOMER INFORMATION
B6: Customer name is the same as it appears on PNM bills.
B7: PNM account number is complete and accurate (NOTE: New Construction account information may not be available for Pre-Notification, but is required for the Final Application.)
B8: Taxpayer ID is complete and accurate.
B9: First-time customers/payees MUST submit IRS From W-9 with application.
A10: CONTRACTOR INFORMATION
B11: Provide complete contact information for project contractor. (We may need to contact your contractor to verify any project details.)
B12: If the job is completed by in-house staff, list Contractor as "done-in-house."
A13: INCENTIVE CHECK INFORMATION
B14: Complete contact information and taxpayer ID.
B15: Indicate whether the customer or a third party should receive the check. If a third party is to receive the check:
C16: Customer must check box indicating third party payment.
C17: Both the customer and third party must sign the Agreement Form.
A18: 3) Total Incentives Required
B19: Fill out the following sections:
C20: Total Project Cost (pre-tax)
C21: Project Completion Date
A22: 4) Terms & Conditions of Applications
B23: Customer must read and agree with the Terms & Conditions of the PNM Business Energy Efficiency Program.
B24: If a third party is applying on behalf of the customer, customer must sign the Agreement Form, allowing the third party to sign the application on the customer's behalf.
A25: 5) Incentive Worksheets
B26: Complete the incentive worksheet for each application measure (e.g., lighting, HVAC, refrigeration). Calculations are included where required (e.g., occupancy sensors).
A27: 6) Additional Documentation
A28: FOR PRE-APPLICATION
B29: Submit cost estimate or purchase order that lists the installation address, which must be in PNM service territory.
B30: Submit Agreement between Owner and General Contractor.
B31: Submit construction drawings (electrical and mechanical).
B32: Submit interior/exterior lighting COMchecks (or) Energy Star Target Finder.
B33: Submit project manual.
A34: FOR FINAL APPLICATION
B35: Submit invoices dated no more than 6 months prior to rebate application date.
B36: List the installation address, which must be in PNM service territory, on invoices.
B37: Provide approved submittal or manufacturer's specification sheet for each measure installed (e.g., lamp, ballast, controls, refrigerator, freezer, ice machine, etc.).
B38: Ensure specification sheets include all program eligibility requirements for the measure (e.g., CRI of lamps, ballast factors, IPLV for AC units, etc.). Note: AHRI (Air-conditioning, Heating, and Refrigeration Institute) offers a helpful website for cooling specifications at www.ahridirectory.org.
B39: Submit General Contractor Pay Application.
A40: 7) Submit Application
B41: Submit completed application to PNM Business Energy Efficiency Program via email (preferred), fax, or postal mail. All contact information is on the HOME tab of this document.
B42: If submitting via email, pring a hard copy of the AGREEMENT section of the Applicant Info tab, sign, scan, and email. If using DocuSign® please attach both the completed Excel application and the signed Docusign® PDF. Preferred file type for the completed application is in Excel, while supporting documents are preferred as PDFs.
B43: Print a full, final hard copy of all pages of your application for your records.

Sheet Terms & Conditions
A1: TERMS & CONDITIONS

Sheet Multi-Facility
A1: LIGHTING MULTIPLE FACILITY WORKSHEET
A2: Use this worksheet ONLY if installing the SAME measure in facilities with different service addresses and unique account numbers.
A3: If a project encompasses multiple buildings at the same premise, this worksheet is not required.
A4: For official use only | B4: Pre-Notification Date: | C4: =IF(ISBLANK('Applicant Info'!$K$6)," ",'Applicant Info'!$K$6) ->  | D4: Final Application Date: | E4: =IF(ISBLANK('Applicant Info'!$K$8)," ",'Applicant Info'!$K$8) -> 
A5: Application # | C5: Business Name: | D5: =IF(ISBLANK('Applicant Info'!$A$18)," ",'Applicant Info'!$A$18) -> 
A6: Prepared by: | B6: =IF(ISBLANK('Applicant Info'!$A$20)," ",'Applicant Info'!$A$20) ->  | D6: Contact #: | E6: ='Applicant Info'!$D$21 -> 0
A8: Project Locations
A9: Service Address | B9: Account # | C9: Replacement Equipment Type 1 | D9: Replacement Equipment Type 2 | E9: Replacement Equipment Qty | F9: Existing Equipment Description | G9: Existing Equipment Qty
A35: Total | E35: =SUM(E10:E34) -> 0 | G35: =SUM(G10:G34) -> 0
A200: Measure Type 1
A201: Interior Lighting
A202: Exterior Lighting
A203: 24/7 Lighting
A204: Plug Load Controls
A205: Custom
A206: HVAC
A207: Envelope
A208: Refrigeration
A209: Food Service Equipment
A210: Motors
A211: VSDs
A213: Measure Type 1 | B213: Measure Type 2 | C213: Unit | D213: Incentive | F213: Measure Type 1
A214: Interior Lighting | B214: Screw-in Compact Fluorescent Lights 5-15 Watts | C214: Lamp | D214: 1 | F214: Interior Lighting
A215: Interior Lighting | B215: Screw-in Compact Fluorescent Lights 16-26 Watts | C215: Lamp | D215: 1 | F215: Exterior Lighting
A216: Interior Lighting | B216: Screw-in Compact Fluorescent Lights 27 Watts or higher | C216: Lamp | D216: 2 | F216: 24/7 Lighting
A217: Interior Lighting | B217: Screw-in Compact Fluorescent Lights Inside Dwelling Units 5-15 Watts | C217: Lamp | D217: 1 | F217: HVAC
A218: Interior Lighting | B218: Screw-in Compact Fluorescent Lights Inside Dwelling Units 16-26 Watts | C218: Lamp | D218: 1 | F218: Envelope
A219: Interior Lighting | B219: Screw-in Compact Fluorescent Lights Inside Dwelling Units 27 Watts or higher | C219: Lamp | D219: 2 | F219: Refrigeration
A220: Interior Lighting | B220: Hardwired Compact Fluorescent Fixtures 29W or Less | C220: Fixture | D220: 20 | F220: Food Service Equipment
A221: Interior Lighting | B221: Hardwired Compact Fluorescent Fixtures 30W or Greater | C221: Fixture | D221: 40 | F221: Plug Load Controls
A222: Interior Lighting | B222: Hardwired Compact Fluorescent Lights Inside Dwelling Units 29W or Less | C222: Fixture | D222: 5 | F222: Motors
A223: Interior Lighting | B223: Hardwired Compact Fluorescent Lights Inside Dwelling Units 30W or Greater | C223: Fixture | D223: 10 | F223: VSDs
A224: Interior Lighting | B224: Permanent Removal of Lamp from Existing Fixture 2-ft Lamp - T12 basecase | C224: Lamp Removed | D224: 4.5
A225: Interior Lighting | B225: Permanent Removal of Lamp from Existing Fixture 3-ft Lamp - T12 basecase | C225: Lamp Removed | D225: 6
A226: Interior Lighting | B226: Permanent Removal of Lamp from Existing Fixture 4-ft Lamp - T12 basecase | C226: Lamp Removed | D226: 7.5
A227: Interior Lighting | B227: Permanent Removal of Lamp from Existing Fixture 8-ft Lamp - T12 basecase | C227: Lamp Removed | D227: 15
A228: Interior Lighting | B228: Permanent Removal of Lamp from Existing Fixture 2-ft Lamp - T8 basecase | C228: Lamp Removed | D228: 3
A229: Interior Lighting | B229: Permanent Removal of Lamp from Existing Fixture 3-ft Lamp - T8 basecase | C229: Lamp Removed | D229: 4
A230: Interior Lighting | B230: Permanent Removal of Lamp from Existing Fixture 4-ft Lamp - T8 basecase | C230: Lamp Removed | D230: 5
A231: Interior Lighting | B231: Permanent Removal of Lamp from Existing Fixture 8-ft Lamp - T8 basecase | C231: Lamp Removed | D231: 10
A232: Interior Lighting | B232: High Performance (HP) T8 or Reduced Wattage (RW) 4-Foot T8 and Electronic Ballast 4-ft HP Lamp and Ballast | C232: Lamp | D232: 6
A233: Interior Lighting | B233: High Performance (HP) T8 or Reduced Wattage (RW) 4-Foot T8 and Electronic Ballast 4-ft RW Lamp and Ballast | C233: Lamp | D233: 6
A234: Interior Lighting | B234: High Performance (HP) T8 or Reduced Wattage (RW) 4-Foot T8 and Electronic Ballast 1 Lamp 8-ft T12 to 2 Lamp 4-ft HP T8 | C234: Lamp | D234: 6
A235: Interior Lighting | B235: High Performance (HP) T8 or Reduced Wattage (RW) 4-Foot T8 and Electronic Ballast 1 Lamp 8-ft T12 to 2 Lamp 4-ft RW T8 | C235: Lamp | D235: 6
A236: Interior Lighting | B236: Standard T8 and Electronic Ballast 2-ft Lamp and Ballast | C236: Lamp | D236: 3
A237: Interior Lighting | B237: Standard T8 and Electronic Ballast 3-ft Lamp and Ballast | C237: Lamp | D237: 3
A238: Interior Lighting | B238: Standard T8 and Electronic Ballast 4-ft or U-Tube and Ballast | C238: Lamp | D238: 3
A239: Interior Lighting | B239: T12 to T5 Lamps and Ballast | C239: Lamp | D239: 6
A240: Interior Lighting | B240: Reduced Wattage 8 Foot T8 and Electronic Ballast 8-foot T12 to RW T8 | C240: Lamp | D240: 6
A241: Interior Lighting | B241: Reduced Wattage (RW) 4-Foot OR 8-Foot T8 LAMP ONLY 4-ft T8 Reduced Wattage Lamp Only | C241: Lamp | D241: 0.5
A242: Interior Lighting | B242: Reduced Wattage (RW) 4-Foot OR 8-Foot T8 LAMP ONLY 8-ft T8 Reduced Wattage Lamp Only | C242: Lamp | D242: 0.5
A243: Interior Lighting | B243: New High Bay T8/T5 Fluorescent Fixtures with Electronic Ballast replacing HID T8/T5 (w/ electronic ballast) | C243: Watt Reduction*** | D243: 0.3
A244: Interior Lighting | B244: LED Lighting LED, T-1, or Electroluminescent Exit Signs | C244: Sign | D244: 20
A245: Interior Lighting | B245: LED Lighting LED Lamp *NEW Higher Rebate! | C245: Lamp | D245: 12
A246: Interior Lighting | B246: LED Lighting LED Recessed Downlight Fixture *NEW Higher Rebate! | C246: Fixture | D246: 20
A247: Interior Lighting | B247: LED Lighting LED Open Sign | C247: Sign | D247: 25
A248: Interior Lighting | B248: LED Lighting LED Channel Sign ≤ 2 feet Interior | C248: Letter | D248: 8
A249: Interior Lighting | B249: LED Lighting LED Channel Sign > 2 feet Interior | C249: Letter | D249: 16
A250: Interior Lighting | B250: High Efficiency HID Fixture Integrated Ballast Ceramic Metal Halide Lamps | C250: Fixture | D250: 8
A251: Interior Lighting | B251: High Efficiency HID Fixture Metal Halide (Pulse Start or Ceramic) 100W or Less | C251: Fixture | D251: 20
A252: Interior Lighting | B252: High Efficiency HID Fixture Metal Halide (Pulse Start or Ceramic) 101W - 200W | C252: Fixture | D252: 25
A253: Interior Lighting | B253: High Efficiency HID Fixture Metal Halide (Pulse Start or Ceramic) 201W - 350W | C253: Fixture | D253: 45
A254: Interior Lighting | B254: High Efficiency HID Fixture Metal Halide (Pulse Start or Ceramic) 351W - 400W | C254: Fixture | D254: 65
A255: Interior Lighting | B255: Specialty Lamps Cold Cathode | C255: Lamp | D255: 3
A256: Interior Lighting | B256: Specialty Lamps Dimmable; 3-way; Locking Base CFL | C256: Lamp | D256: 5
A257: Interior Lighting | B257: Specialty Lamps Dimmable; 3-way; Locking Base CFL (dwelling units) | C257: Lamp | D257: 3
A258: Interior Lighting | B258: Controls Occupancy Sensors | C258: Watts Controlled | D258: 0.06
A259: Interior Lighting | B259: Controls Daylighting Sensor Controls | C259: Watts Controlled | D259: 0.06
A260: Exterior Lighting | B260: Exterior LED Lighting LED Channel Sign ≤ 2 feet Exterior | C260: Letter | D260: 8
A261: Exterior Lighting | B261: Exterior LED Lighting LED Channel Sign > 2 feet Exterior | C261: Letter | D261: 16
A262: Exterior Lighting | B262: Exterior LED Lighting Bi-Level LED Parking Lot Fixture | C262: Fixture | D262: 60
A263: Exterior Lighting | B263: Exterior LED Lighting Bi-Level LED Wall Pack Fixture | C263: Fixture | D263: 60
A264: Exterior Lighting | B264: Exterior Specialty Lamps Cold Cathode | C264: Lamp | D264: 3
A265: Exterior Lighting | B265: Exterior Specialty Lamps CFL - High Wattage (>40W) Screw-In , Dimmable, or 3-way | C265: Lamp | D265: 15
A266: Exterior Lighting | B266: Outdoor Area or Street Lights Metal Halide (Pulse Start or Ceramic) 100W or Less | C266: Fixture | D266: 20
A267: Exterior Lighting | B267: Outdoor Area or Street Lights Metal Halide (Pulse Start or Ceramic) 101W - 200W | C267: Fixture | D267: 25
A268: Exterior Lighting | B268: Outdoor Area or Street Lights Metal Halide (Pulse Start or Ceramic) 201W - 350 | C268: Fixture | D268: 45
A269: Exterior Lighting | B269: Outdoor Area or Street Lights Metal Halide (Pulse Start or Ceramic) 351W - 400W | C269: Fixture | D269: 65
A270: Exterior Lighting | B270: Outdoor Area or Street Lights LED or Induction replacing 175W or Less HID | C270: Fixture | D270: 40
A271: Exterior Lighting | B271: Outdoor Area or Street Lights LED or Induction replacing 176W - 250W HID | C271: Fixture | D271: 50
A272: Exterior Lighting | B272: Outdoor Area or Street Lights LED or Induction replacing 251W - 400W HID | C272: Fixture | D272: 60
A273: Exterior Lighting | B273: Exterior Hardwired Compact Fluorescent Fixtures 29W or Less | C273: Fixture | D273: 20
A274: Exterior Lighting | B274: Exterior Hardwired Compact Fluorescent Fixtures 30W or Greater | C274: Fixture | D274: 40
A275: 24/7 Lighting | B275: 24/7 LED Lighting Bi-Level LED Parking Lot Fixture | C275: Fixture | D275: 60
A276: 24/7 Lighting | B276: 24/7 LED Lighting Bi-Level LED Wall Pack Fixture | C276: Fixture | D276: 60
A277: 24/7 Lighting | B277: 24/7 Specialty Lamps Cold Cathode | C277: Lamp | D277: 3
A278: 24/7 Lighting | B278: 24/7 Specialty Lamps CFL - High Wattage (>40W) Screw-In (Exterior ONLY) | C278: Lamp | D278: 15
A279: 24/7 Lighting | B279: 24/7 Specialty Lamps CFL - Dimmable, or 3-way | C279: Lamp | D279: 15
A280: 24/7 Lighting | B280: 24/7 Outdoor Area or Street Lights Metal Halide (Pulse Start or Ceramic) 100W or Less | C280: Fixture | D280: 20
A281: 24/7 Lighting | B281: 24/7 Outdoor Area or Street Lights Metal Halide (Pulse Start or Ceramic) 101W - 200W | C281: Fixture | D281: 25
A282: 24/7 Lighting | B282: 24/7 Outdoor Area or Street Lights Metal Halide (Pulse Start or Ceramic) 201W - 350 | C282: Fixture | D282: 45
A283: 24/7 Lighting | B283: 24/7 Outdoor Area or Street Lights Metal Halide (Pulse Start or Ceramic) 351W - 400W | C283: Fixture | D283: 65
A284: 24/7 Lighting | B284: 24/7 Outdoor Area or Street Lights LED or Induction replacing 175W or Less HID | C284: Fixture | D284: 40
A285: 24/7 Lighting | B285: 24/7 Outdoor Area or Street Lights LED or Induction replacing 176W - 250W HID | C285: Fixture | D285: 50
A286: 24/7 Lighting | B286: 24/7 Outdoor Area or Street Lights LED or Induction replacing 251W - 400W HID | C286: Lamp | D286: 60
A287: 24/7 Lighting | B287: 24/7 Traffic and Pedestrain Signals LED traffic lights - Green 8" | C287: Lamp | D287: 10
A288: 24/7 Lighting | B288: 24/7 Traffic and Pedestrain Signals LED traffic lights - Green 12" | C288: Lamp | D288: 20
A289: 24/7 Lighting | B289: 24/7 Traffic and Pedestrain Signals LED traffic lights - Red 8" | C289: Lamp | D289: 10
A290: 24/7 Lighting | B290: 24/7 Traffic and Pedestrain Signals LED traffic lights - Red 12" | C290: Lamp | D290: 20
A291: 24/7 Lighting | B291: 24/7 Traffic and Pedestrain Signals LED traffic lights - Walk/Don't Walk or Arrow - 9" | C291: Lamp | D291: 5
A292: 24/7 Lighting | B292: 24/7 Traffic and Pedestrain Signals LED traffic lights - Walk/Don't Walk or Arrow - 12" | C292: Lamp | D292: 5
A293: 24/7 Lighting | B293: 24/7 New T8/T5 Fluorescent Fixtures with Electronic Ballast replacing HID T8/T5 (w/ electronic ballast) | C293: Watt Reduction*** | D293: 0.3
A294: 24/7 Lighting | B294: 24/7 Controls Bi-Level Stairwell/Hall/Garage Fixtures w/ integrated sensors | C294: Fixture | D294: 20
C296: Unit | D296: Incentive
A297: Envelope | B297: Window Film | C297: Sq. Ft. of Glazing | D297: 1.2
C299: Unit | D299: Incentive
A300: Refrigeration | B300: Strip Curtains on Walk-ins and Freezers | C300: Sq. Ft. | D300: 3
A301: Refrigeration | B301: Night Covers for Displays | C301: Lin. Ft. of Case | D301: 5
A302: Refrigeration | B302: EC Motor for Reach-in Refrigerator or Freezer Cases | C302: Motor | D302: 25
A303: Refrigeration | B303: Evaporator Fan Controller - Shade Pole Motor | C303: Motor | D303: 40
A304: Refrigeration | B304: Anti Sweat Heater Controls | C304: Lin. Ft. of Case | D304: 20
A305: Refrigeration | B305: LED Refrigeration Case Lighting | C305: Door | D305: 40
A306: Refrigeration | B306: ENERGY STAR® Solid Door Freezer | C306: Unit | D306: 100
A307: Refrigeration | B307: ENERGY STAR® Glass Door Freezer | C307: Unit | D307: 350
C309: Unit | D309: Incentive
A310: Food Service Equipment | B310: ENERGY STAR® Steam Cookers | C310: Unit | D310: 400
A311: Food Service Equipment | B311: Combination Oven | C311: Unit | D311: 800
A312: Food Service Equipment | B312: ENERGY STAR® Hot Holding Cabinet - 1/2 size | C312: Unit | D312: 200
A313: Food Service Equipment | B313: ENERGY STAR® Hot Holding Cabinet - 3/4 size | C313: Unit | D313: 300
A314: Food Service Equipment | B314: ENERGY STAR® Hot Holding Cabinet - Full size | C314: Unit | D314: 400
A315: Food Service Equipment | B315: ENERGY STAR® Beverage Vending Machine | C315: Unit | D315: 80
A316: Food Service Equipment | B316: ENERGY STAR® Commercial Vat Fryer | C316: Unit | D316: 225
A317: Food Service Equipment | B317: ENERGY STAR® Griddle | C317: Unit | D317: 125
C319: Unit | D319: Incentive
A320: Plug Load Controls | B320: Beverage Vending Machine Control | C320: Unit | D320: Contact for offer
A321: Plug Load Controls | B321: Refrigerated Cooler Control | C321: Unit | D321: Contact for offer
A322: Plug Load Controls | B322: Snack Machine Control | C322: Unit | D322: Contact for offer
A323: Plug Load Controls | B323: Plug Load Occupancy Sensors | C323: Unit | D323: 25
C325: Unit | D325: Incentive
A326: Motors | B326: 1200 RPM - 1 HP - Open | C326: motor | D326: 1
A327: Motors | B327: 1200 RPM - 1 HP - Open | C327: motor | D327: 1.5
A328: Motors | B328: 1200 RPM - 1 HP - Open | C328: motor | D328: 2
A329: Motors | B329: 1200 RPM - 1 HP - Open | C329: motor | D329: 3
A330: Motors | B330: 1200 RPM - 1 HP - Open | C330: motor | D330: 4
A331: Motors | B331: 1200 RPM - 1 HP - Open | C331: motor | D331: 9
A332: Motors | B332: 1200 RPM - 1 HP - Open | C332: motor | D332: 10
A333: Motors | B333: 1200 RPM - 1 HP - Open | C333: motor | D333: 11
A334: Motors | B334: 1200 RPM - 1 HP - Open | C334: motor | D334: 12
A335: Motors | B335: 1200 RPM - 1 HP - Open | C335: motor | D335: 15
A336: Motors | B336: 1200 RPM - 1 HP - Open | C336: motor | D336: 17
A337: Motors | B337: 1200 RPM - 1 HP - Open | C337: motor | D337: 20
A338: Motors | B338: 1200 RPM - 1 HP - Open | C338: motor | D338: 24
A339: Motors | B339: 1200 RPM - 1 HP - Open | C339: motor | D339: 25
A340: Motors | B340: 1200 RPM - 1 HP - Open | C340: motor | D340: 30
A341: Motors | B341: 1200 RPM - 1 HP - Open | C341: motor | D341: 40
A342: Motors | B342: 1200 RPM - 1 HP - Open | C342: motor | D342: 50
A343: Motors | B343: 1200 RPM - 1 HP - Open | C343: motor | D343: 60
A344: Motors | B344: 1200 RPM - 1 HP - Open | C344: motor | D344: 75
A345: Motors | B345: 1200 RPM - 1 HP - Open | C345: motor | D345: 1
A346: Motors | B346: 1200 RPM - 1 HP - Open | C346: motor | D346: 1.5
A347: Motors | B347: 1200 RPM - 1 HP - Open | C347: motor | D347: 2
A348: Motors | B348: 1200 RPM - 1 HP - Open | C348: motor | D348: 3
A349: Motors | B349: 1200 RPM - 1 HP - Open | C349: motor | D349: 4
A350: Motors | B350: 1200 RPM - 1 HP - Open | C350: motor | D350: 9
A351: Motors | B351: 1200 RPM - 1 HP - Open | C351: motor | D351: 10
A352: Motors | B352: 1200 RPM - 1 HP - Open | C352: motor | D352: 11
A353: Motors | B353: 1200 RPM - 1 HP - Open | C353: motor | D353: 12
A354: Motors | B354: 1200 RPM - 1 HP - Open | C354: motor | D354: 15
A355: Motors | B355: 1200 RPM - 1 HP - Open | C355: motor | D355: 17
A356: Motors | B356: 1200 RPM - 1 HP - Open | C356: motor | D356: 20
A357: Motors | B357: 1200 RPM - 1 HP - Open | C357: motor | D357: 24
A358: Motors | B358: 1200 RPM - 1 HP - Open | C358: motor | D358: 25
A359: Motors | B359: 1200 RPM - 1 HP - Open | C359: motor | D359: 30
A360: Motors | B360: 1200 RPM - 1 HP - Open | C360: motor | D360: 40
A361: Motors | B361: 1200 RPM - 1 HP - Open | C361: motor | D361: 50
A362: Motors | B362: 1200 RPM - 1 HP - Open | C362: motor | D362: 60
A363: Motors | B363: 1200 RPM - 1 HP - Open | C363: motor | D363: 75
A364: Motors | B364: 1200 RPM - 1 HP - Open | C364: motor | D364: 1
A365: Motors | B365: 1200 RPM - 1 HP - Open | C365: motor | D365: 1.5
A366: Motors | B366: 1200 RPM - 1 HP - Open | C366: motor | D366: 2
A367: Motors | B367: 1200 RPM - 1 HP - Open | C367: motor | D367: 3
A368: Motors | B368: 1200 RPM - 1 HP - Open | C368: motor | D368: 4
A369: Motors | B369: 1200 RPM - 1 HP - Open | C369: motor | D369: 9
A370: Motors | B370: 1200 RPM - 1 HP - Open | C370: motor | D370: 10
A371: Motors | B371: 1200 RPM - 1 HP - Open | C371: motor | D371: 11
A372: Motors | B372: 1200 RPM - 1 HP - Open | C372: motor | D372: 12
A373: Motors | B373: 1200 RPM - 1 HP - Open | C373: motor | D373: 15
A374: Motors | B374: 1200 RPM - 1 HP - Open | C374: motor | D374: 17
A375: Motors | B375: 1200 RPM - 1 HP - Open | C375: motor | D375: 20
A376: Motors | B376: 1200 RPM - 1 HP - Open | C376: motor | D376: 24
A377: Motors | B377: 1200 RPM - 1 HP - Open | C377: motor | D377: 25
A378: Motors | B378: 1200 RPM - 1 HP - Open | C378: motor | D378: 30
A379: Motors | B379: 1200 RPM - 1 HP - Open | C379: motor | D379: 40
A380: Motors | B380: 1200 RPM - 1 HP - Open | C380: motor | D380: 50
A381: Motors | B381: 1200 RPM - 1 HP - Open | C381: motor | D381: 60
A382: Motors | B382: 1200 RPM - 1 HP - Open | C382: motor | D382: 75
A383: Motors | B383: 1200 RPM - 1 HP - Open | C383: motor | D383: 1
A384: Motors | B384: 1200 RPM - 1 HP - Open | C384: motor | D384: 1.5
A385: Motors | B385: 1200 RPM - 1 HP - Open | C385: motor | D385: 2
A386: Motors | B386: 1200 RPM - 1 HP - Open | C386: motor | D386: 3
A387: Motors | B387: 1200 RPM - 1 HP - Open | C387: motor | D387: 4
A388: Motors | B388: 1200 RPM - 1 HP - Open | C388: motor | D388: 9
A389: Motors | B389: 1200 RPM - 1 HP - Open | C389: motor | D389: 10
A390: Motors | B390: 1200 RPM - 1 HP - Open | C390: motor | D390: 11
A391: Motors | B391: 1200 RPM - 1 HP - Open | C391: motor | D391: 12
A392: Motors | B392: 1200 RPM - 1 HP - Open | C392: motor | D392: 15
A393: Motors | B393: 1200 RPM - 1 HP - Open | C393: motor | D393: 17
A394: Motors | B394: 1200 RPM - 1 HP - Open | C394: motor | D394: 20
A395: Motors | B395: 1200 RPM - 1 HP - Open | C395: motor | D395: 24
A396: Motors | B396: 1200 RPM - 1 HP - Open | C396: motor | D396: 25
... 47 more rows

Sheet Interior Lighting
B1: NEW CONSTRUCTION INTERIOR LIGHTING INCENTIVES
A2: Applicant: fill in gray fields | H2: See specs at the bottom of the page!
A3: IMPORTANT NOTICE: Only approved LED lighting is eligible for a rebate; fluorescent and incandescent do not qualify.
A4: Interior Lighting Power Density (for Areas with improvement over ASHRAE 90.1-2016) | O4: 2021 V2
A5: Building Type | E5: Lighting Power Density1 (W/ft2) | F5: Actual LPD (W/ft2) | G5: Building Area (ft2) | H5: Watts Reduced | I5: Incentive Subtotal ($0.53/Watt)2 | M5: 2019 | N5: 2020 20% over 2007 | O5: ASHRAE 90.1 2016 | P5: Avg of 2007 and 2016 | Q5: % Improvement over 2007
E6: =IF(A6="","",VLOOKUP(A6,$L$6:$P$37,4,FALSE)) ->  | H6: =IF(E6="","",IF(AND(ISNUMBER(F6),E6-F6>0),(E6-F6)*G6,0)) ->  | I6: =IF(F6>E6,0,IF(ISNUMBER(F6),H6*0.53,0)) -> 0 | L6: Automotive | M6: 0.9 | N6: 0.7 | O6: 0.71 | P6: 0.81 | Q6: 0.1111111111
E7: =IF(A7="","",VLOOKUP(A7,$L$6:$P$37,4,FALSE)) ->  | I7: 0 | L7: Convention Center | M7: 1.2 | N7: 1 | O7: 0.76 | P7: 0.98 | Q7: 0.2244897959
I8: 0 | L8: Court House | M8: 1.2 | N8: 1 | O8: 0.9 | P8: 1.05 | Q8: 0.1428571429
I9: 0 | L9: Dining: Bar Lounge/Leisure | M9: 1.3 | N9: 1 | O9: 0.9 | P9: 1.1 | Q9: 0.1818181818
I10: 0 | L10: Dining: Cafeteria/Fast Food | M10: 1.4 | N10: 1.1 | O10: 0.79 | P10: 1.1 | Q10: 0.2727272727
I11: 0 | L11: Dining: Family | M11: 1.6 | N11: 1.3 | O11: 0.78 | P11: 1.19 | Q11: 0.3445378151
I12: 0 | L12: Dormitory | M12: 1 | N12: 0.8 | O12: 0.61 | P12: 0.81 | Q12: 0.2345679012
I13: 0 | L13: Exercise Center | M13: 1 | N13: 0.8 | O13: 0.65 | P13: 0.83 | Q13: 0.2048192771
I14: 0 | L14: Fire Station | O14: 0.53 | P14: 0.53
I15: 0 | L15: Gymnasium | M15: 1.1 | N15: 0.9 | O15: 0.68 | P15: 0.89 | Q15: 0.2359550562
I16: 0 | L16: Health Care | M16: 1 | N16: 0.8 | O16: 0.82 | P16: 0.84 | Q16: 0.1904761905
A17: Interior LPD Incentive | I17: =SUM(I6:I16) -> 0 | L17: Hospital | M17: 1.2 | N17: 1 | O17: 1.05 | P17: 1.01 | Q17: 0.1881188119
L18: Hotel | M18: 1 | N18: 0.8 | O18: 0.75 | P18: 1.03 | Q18: -0.02912621359
A19: Daylighting Controls | L19: Library | M19: 1.3 | N19: 1 | O19: 0.78 | P19: 1.03 | Q19: 0.2621359223
A20: Equipment | C20: Unit Incentive $/Watt | E20: Connected Watts (Total) | G20: # of Sensors | H20: Incentive | L20: Manufacturing Facility | M20: 1.3 | N20: 1 | O20: 0.9 | P20: 1.04 | Q20: 0.25
A21: Daylighting Controls*** | C21: 0.06 | H21: =C21*E21 -> 0 | L21: Motion Picture Theatre | M21: 1 | N21: 0.8 | O21: 0.83 | P21: 0.95 | Q21: 0.05263157895
K22: =H22 -> 0 | L22: Multi-Family (Non-residential meter only) | M22: 1.2 | N22: 1 | O22: 0.68 | P22: 1.02 | Q22: 0.1764705882
A23: Total New Construction Interior Lighting Incentives | H23: =SUM(I6:I16,H21) -> 0 | L23: Museum | M23: 0.7 | N23: 0.5 | O23: 1.06 | P23: 0.69 | Q23: 0.01449275362
A24: NOTES: | L24: Office | M24: 1.1 | N24: 0.9 | O24: 0.79 | P24: 1.08 | Q24: 0.01851851852
A25: 1. Lighting Power Density Incentive for Areas with improvement over ASHRAE 90.1-2016 | L25: Parking Garage | M25: 1 | N25: 0.8 | O25: 0.15 | P25: 0.9 | Q25: 0.1111111111
A26: 2. Incentive = (LPD baseline - LPD actual) x area x $0.53 | L26: Penitentiary | M26: 0.3 | N26: 0.2 | O26: 0.75 | P26: 0.23 | Q26: 0.3043478261
A27: 3. A COMCheck document or PNM Interior LPD calculator with supporting calculations must accompany the final application | L27: Performing Arts Theater | M27: 1 | N27: 0.8 | O27: 1.18 | P27: 0.88 | Q27: 0.1363636364
A28: 4. Manufacturer's specification sheets must accompany the final application | L28: Police/Fire Station | M28: 1.6 | N28: 1.3 | O28: 0.8 | P28: 1.39 | Q28: 0.1510791367
A29: 4. This lighting incentive worksheet should be used for new construction or major renovation projects | L29: Post Office | M29: 1 | N29: 0.8 | O29: 0.67 | P29: 0.9 | Q29: 0.1111111111
A30: 5. If the lighting project is for retrofit projects, please use the Retrofit Rebate application | L30: Religious Building | M30: 1.1 | N30: 0.9 | O30: 0.94 | P30: 0.89 | Q30: 0.2359550562
A31: 6. Include any lighting layout drawings for inspection purposes | L31: Retail | M31: 1.3 | N31: 1 | O31: 1.06 | P31: 1.12 | Q31: 0.1607142857
L32: School/University | M32: 1.5 | N32: 1.2 | O32: 0.81 | P32: 1.28 | Q32: 0.171875
L33: Sports Arena | M33: 1.2 | N33: 1 | O33: 0.87 | P33: 1.01 | Q33: 0.1881188119
L34: Town Hall | M34: 1.1 | N34: 0.9 | O34: 0.8 | P34: 0.99 | Q34: 0.1111111111
L35: Transportation | M35: 1.1 | N35: 0.9 | O35: 0.61 | P35: 0.95 | Q35: 0.1578947368
L36: Warehouse | M36: 1 | N36: 0.8 | O36: 0.48 | P36: 0.81 | Q36: 0.2345679012
L37: Workshop | M37: 0.8 | N37: 0.6 | O37: 0.9 | P37: 0.64 | Q37: 0.25
A83: The following lighting equipment and applications are excluded from the calculation of interior lighting power. However, any such lighting shall not be exempt unless it is an addition to general lighting and is controlled by an independent control device.
A87: 1. Display or accent lighting that is an essential element for the function performed in galleries, museums, and monuments.
A88: 2. Lighting that is integral to equipment or instrumentation and is installed by its manufacturer.
A89: 3. Lighting specifically designed for use only during medical or dental procedures and lighting integral to medical equipment.
A90: 4. Lighting integral to both open and glass-enclosed refrigerator and freezer cases.
A91: 5. Lighting integral to food warming and food preparation equipment.
A92: 6. Lighting specifically designed for the life support of nonhuman life forms.
A93: 7. Lighting in retail display windows, provided the display area is enclosed by ceiling-height partitions.
A94: 8. Lighting in interior spaces that have been specifically designated as a registered interior historic landmark.
A95: 9. Lighting that is an integral part of advertising or directional signage.
A96: 10. Exit signs.
A97: 11. Lighting that is for sale or lighting educational demonstration systems.
A98: 12. Lighting for theatrical purposes, including performance, stage, and film and video production.
A99: 13. Lighting for television broadcasting in sporting activity areas.
A100: 14. Casino gaming areas.
A101: 15. Furniture-mounted supplemental task lighting that is controlled by automatic shutoff and complies with Section 9.4.1.3(c).
A102: 16. Mirror lighting in dressing rooms and accent lighting in religious pulpit and choir areas.
A103: 17. Parking garage transition lighting—lighting for covered vehicle entrances and exits from buildings and parking structures—that complies with
A104: Section 9.4.1.2(a) and 9.4.1.2(c) of ASHRAE 90.1-2016; each transition zone shall not exceed a depth of 66 ft inside the structure and a width of
A105: 50 ft.

Sheet Exterior Lighting
D1: NEW CONSTRUCTION EXTERIOR LIGHTING INCENTIVES
A2: Applicant: fill in gray fields | J2: See specs at the bottom of the page!
A3: IMPORTANT NOTICE: Only approved LED lighting is eligible for a rebate; fluorescent and incandescent do not qualify.
A4: Exterior Lighting Power Density (for Areas with improvement over ASHRAE 90.1-2016)
A5: SURFACE TYPE | D5: Area or Length | E5: Allowed LPD1 (W/ft2, ft or location) | F5: Fixture Description | G5: Building Area, Length or Qty | H5: Number of Fixtures | I5: Fixture Wattage | J5: Total Wattage | K5: Actual LPD (W/ft2, ft or location) | L5: Incentive Subtotal 2 ($0.63/Watt) | P5: ASHRAE 90.1 2016
D6: =_xlfn.IFNA(VLOOKUP(A6,$O$6:$U$26,3,FALSE),"") ->  | E6: =(_xlfn.IFNA(ROUND(VLOOKUP(A6,$O$6:$U$26,2,FALSE),2),"")) ->  | J6: =IF(I6="", " ", H6*I6) ->  | K6: =(IF(OR(F6="",G6=""),"",ROUNDDOWN(J6/G6,2))) ->  | L6: =IF(OR(A6="",H6="",J6=0), " ", IF(K6>E6,0,(E6-K6)*0.63*G6)) ->  | O6: Uncovered Parking Lots and Drives | P6: 0.06 | Q6: Area
O7: Walkway less than 10' Wide | P7: 0.6 | Q7: Length
O8: Walkway 10' Wide or Greater | P8: 0.11 | Q8: Area
O9: Plaza Areas | P9: 0.11 | Q9: Area
O10: Special Feature Areas | P10: 0.11 | Q10: Area
O11: Dining Areas | P11: 0.75 | Q11: Area
O12: Stairways | P12: 0.7 | Q12: Area
O13: Landscaping | P13: 0.04 | Q13: Area
O14: Main Entries - Pedestrian and vehicular | P14: 21 | Q14: Length
O15: Entry - Canopies and Overhangs | P15: 0.4 | Q15: Area
O16: Loading Docks | P16: 0.35 | Q16: Area
O17: Sales Canopy - Free standing and attached | P17: 0.6 | Q17: Area
O18: Outdoor Sales Open Area | P18: 0.35 | Q18: Area
O19: Outdoor Sales Street Frontage | P19: 7 | Q19: Length
O20: Building Façade - Area | P20: 0.15 | Q20: Area
O21: Building Façade - Length | P21: 3.75 | Q21: Length
O22: Automated Teller Machines | P22: 135 | Q22: Location
O23: Gatehouse Inspection Stations | P23: 0.5 | Q23: Area
A24: New Construction Exterior Lighting Incentive | L24: =SUM(L6:L23) -> 0 | O24: Loading for Law Enforcement | P24: 0.35 | Q24: Area
A25: NOTES: | O25: Drive Through Windows | P25: 200 | Q25: Location
A26: 1. Lighting Power Density Incentive for Areas with improvement over ASHRAE 90.1-2016 | O26: Parking Near 24 Hour Retail | P26: 400 | Q26: Entry
A27: 2. Incentive = (LPD baseline - LPD actual) x area x $0.63
A28: 3. A COMCheck document or supporting calculations must accompany the final application
A29: 4. Manufacturer's specification sheets must accompany the final application
A30: 4. This lighting incentive worksheet should be used for new construction or major renovation projects
A31: 5. If the lighting project is for retrofit projects, please use the Retrofit Rebate application
A32: 6. Include any lighting layout drawings for inspection purposes
A50: The following are exempt for both lighting used for exterior applications when equipped with a complying control device and is independent of the control of the nonexempt lighting, and lighting used for exterior applications when controlled seperately.
A54: 1. Lighting used for the following exterior applications is exempt when equipped with a control device that complies with the requirements of Section 9.4.1.4 of ASHRAE 90.1-2016, and is
A55: independent of the control of the nonexempt lighting:
A56: a. Lighting that is integral to signage and installed in the signage by the manufacturer.
A57: b. Lighting for athletic playing areas.
A58: c. Lighting for industrial production, material handling, transportation sites, and associated storage areas.
A59: d. Theme elements in theme/amusement parks.
A60: e. Lighting used to highlight features of public monuments, public art displays, and registered historic landmark structures or buildings.
A61: f. Lighting for water features.
A62: 2. Lighting used for the following exterior applications is exempt when controlled separately:
A63: a. Specialized signal, directional, and marker lighting associated with transportation.
A64: b. Lighting integral to equipment or instrumentation and installed by its manufacturer.
A65: c. Lighting for theatrical purposes, including performance, stage, film production, and video production.
A66: d. Temporary lighting.
A67: e. Lighting for hazardous locations.
A68: f. Lighting for swimming pools.
A69: g. Searchlights.

Sheet HVAC
B1: HVAC INCENTIVES | H1: See specs at the bottom of the page! | L1: USE THIS SECTION TO REPLACE THE TABLE IN THE SPECS WORKSHEET
A2: Applicant: fill in gray fields at bottom | B2: See instructions to complete this worksheet at the bottom of the page
A3: HVAC Units
A4: Equipment Type | D4: Size Category | G4: Qualifying Efficiency* | H4: Incentive (per ton) | I4: Efficiency Bonus | J4: New Qualifying Efficiency* | L4: Equipment Type | M4: Size Category | P4: Qualifying Efficiency* | Q4: Incentive (per ton) | R4: Efficiency Bonus
A5: Unitary and Split Air Conditioning Systems | D5: < 65,000 Btu/h (5.4 tons) | G5: 15.0 SEER | H5: 25 | I5: 15 | J5: 15.0 SEER | L5: Unitary and Split Air Conditioning Systems | M5: < 65,000 Btu/h (5.4 tons) | P5: =J5 -> 15.0 SEER | Q5: 25 | R5: 15
D6: ≥ 65,000 Btu/h and < 135,000 Btu/h (5.4-11.25 tons) | G6: 13.7 IEER** | J6: 11.8 EER** | M6: ≥ 65,000 Btu/h and < 135,000 Btu/h (5.4-11.25 tons) | P6: 13.7 IEER**
D8: ≥ 135,000 Btu/h and < 240,000 Btu/h (11.25-20 tons) | G8: 13.3 IEER** | J8: 11.6 EER** | M8: ≥ 135,000 Btu/h and < 240,000 Btu/h (11.25-20 tons) | P8: 13.3 IEER**
D10: ≥ 240,000 Btu/h and < 760,000 Btu/h (20-63 Tons) | G10: 12.4 IEER** | J10: 10.5 EER** | M10: ≥ 240,000 Btu/h and < 760,000 Btu/h (20-63 Tons) | P10: 12.4 IEER**
D12: ≥ 760,000 Btu/h (> 63 tons) | G12: 12.0 IEER** | J12: 10.2 EER** | M12: ≥ 760,000 Btu/h (> 63 tons) | P12: 12.0 IEER**
A14: Air Source Heat Pumps | D14: < 65,000 Btu/h (5.4 tons) | G14: 15 SEER and 8.6 HSPF | H14: 40 | I14: 15 | J14: 15 SEER and 8.6 HSPF | L14: Air Source Heat Pumps | M14: < 65,000 Btu/h (5.4 tons) | P14: 15 SEER and 8.6 HSPF | Q14: 40 | R14: 15
D15: ≥ 65,000 Btu/h and < 135,000 Btu/h (5.4-11.25 tons) | G15: 12.9 IEER** and 3.5 COP | J15: 11.6 EER** and 3.5 COP | M15: ≥ 65,000 Btu/h and < 135,000 Btu/h (5.4-11.25 tons) | P15: 12.9 IEER** and 3.5 COP
D17: ≥ 135,000 Btu/h and < 240,000 Btu/h (11.25-20 tons) | G17: 12.4 IEER** and 3.4 COP | J17: 11.1 EER** and 3.4 COP | M17: ≥ 135,000 Btu/h and < 240,000 Btu/h (11.25-20 tons) | P17: 12.4 IEER** and 3.4 COP
D19: ≥ 240,000 Btu/h and < 760,000 Btu/h (20-63 Tons) | G19: 11.4 IEER** and 3.4 COP | J19: 10.0 EER** and 3.4 COP | M19: ≥ 240,000 Btu/h and < 760,000 Btu/h (20-63 Tons) | P19: 11.4 IEER** and 3.4 COP
A21: Chillers: Water-Cooled, Centrifugal*** | D21: ≤ 150 tons | G21: 0.495 kW/ton-IPLV | H21: 20 | I21: 20 | J21: 0.495 kW/ton-IPLV | L21: Chillers: Water-Cooled, Centrifugal | M21: ≤ 150 tons | P21: 0.495 kW/ton-IPLV | Q21: 20 | R21: 20
D22: >150 tons and ≤ 300 tons | G22: 0.495 kW/ton-IPLV | J22: 0.495 kW/ton-IPLV | M22: >150 tons and ≤ 300 tons | P22: 0.495 kW/ton-IPLV
D23: > 300 tons to ≤ 400 tons | G23: 0.468 kW/ton-IPLV | J23: 0.468 kW/ton-IPLV | M23: > 300 tons to ≤ 400 tons | P23: 0.468 kW/ton-IPLV
D24: > 400 tons to ≤ 600 tons | G24: 0.450 kW/ton-IPLV | J24: 0.450 kW/ton-IPLV | M24: > 400 tons to ≤ 600 tons | P24: 0.450 kW/ton-IPLV
D25: > 600 | G25: 0.450 kW/ton-IPLV | J25: 0.450 kW/ton-IPLV | M25: > 600 | P25: 0.450 kW/ton-IPLV
A26: Chillers: Water Cooled Scroll, Helical-Rotary or Reciprocating*** | D26: ≤ 75 tons | G26: 0.54 kW/ton-IPLV | J26: 0.54 kW/ton-IPLV | L26: Chillers: Water Cooled Scroll, Helical-Rotary or Reciprocating*** | M26: ≤ 75 tons | P26: 0.54 kW/ton-IPLV
D27: > 75 tons and ≤ 150 tons | G27: 0.504 kW/ton-IPLV | J27: 0.504 kW/ton-IPLV | M27: > 75 tons and ≤ 150 tons | P27: 0.504 kW/ton-IPLV
D28: >150 tons and ≤ 300 tons | G28: 0.486 kW/ton-IPLV | J28: 0.486 kW/ton-IPLV | M28: >150 tons and ≤ 300 tons | P28: 0.486 kW/ton-IPLV
D29: > 300 tons and ≤ 600 tons | G29: 0.468 kW/ton-IPLV | J29: 0.468 kW/ton-IPLV | M29: > 300 tons and ≤ 600 tons | P29: 0.468 kW/ton-IPLV
D30: > 600 tons | G30: 0.540 kW/ton-IPLV | J30: 0.540 kW/ton-IPLV | M30: > 600 tons | P30: 0.540 kW/ton-IPLV
A31: Chillers: Air-Cooled | D31: ≤ 150 | G31: 0.788 kW/ton-IPLV | H31: 40 | I31: 20 | J31: 0.788 kW/ton-IPLV | L31: Chillers: Air-Cooled | M31: ≤ 150 | P31: 0.788 kW/ton-IPLV | Q31: 40 | R31: 20
D32: > 150 | G32: 0.771 kW/ton-IPLV | J32: 0.771 kW/ton-IPLV | M32: > 150 | P32: 0.771 kW/ton-IPLV
A33: Packaged Terminal AC | D33: ALL | G33: 14.5-(0.300 x Btu/h/1000) EER | H33: 50 | I33: 0 | J33: 14.5-(0.300 x Btu/h/1000) EER | L33: Packaged Terminal AC | M33: ALL | P33: 14.5-(0.300 x Btu/h/1000) EER | Q33: 50 | R33: 0
A34: Packaged Terminal HP | D34: ALL | G34: 14.5-(0.300 x Btu/h/1000) EER | H34: 100 | J34: 14.5-(0.300 x Btu/h/1000) EER | L34: Packaged Terminal HP | M34: ALL | P34: 14.5-(0.300 x Btu/h/1000) EER | Q34: 100
A35: Variable Refrigerant Flow HP | D35: < 65,000 Btu/h (5.4 tons) | G35: 13.9 SEER and 8.3 HSPF | H35: 40 | I35: 20 | J35: 13.9 SEER and 8.3 HSPF | L35: Variable Refrigerant Flow HP | M35: < 65,000 Btu/h (5.4 tons) | P35: 13.9 SEER and 8.3 HSPF | Q35: 40 | R35: 20
D36: ≥ 65,000 Btu/h and < 135,000 Btu/h (5.4-11.25 tons) | G36: 15.4 IEER and 3.5 COP | H36: 40 | I36: 25 | J36: 15.4 IEER and 3.5 COP | M36: ≥ 65,000 Btu/h and < 135,000 Btu/h (5.4-11.25 tons) | P36: 15.4 IEER and 3.5 COP | Q36: 40 | R36: 25
D37: ≥ 135,000 Btu/h and < 240,000 Btu/h (11.25-20 tons) | G37: 14.7 IEER and 3.4 COP | J37: 14.7 IEER and 3.4 COP | M37: ≥ 135,000 Btu/h and < 240,000 Btu/h (11.25-20 tons) | P37: 14.7 IEER and 3.4 COP
D38: ≥ 240,000 Btu/h (20 Tons) | G38: 13.4 IEER and 3.4 COP | J38: 13.4 IEER and 3.4 COP | M38: ≥ 240,000 Btu/h (20 Tons) | P38: 13.4 IEER and 3.4 COP
A39: Computer Room Air Conditioners | D39: < 65,000 Btuh | G39: 8.2 EER | H39: $8.00/Mbtu | I39: N/A | L39: Computer Room Air Conditioners | M39: < 65,000 Btuh | P39: 8.2 EER | Q39: $8.00/Mbtu | R39: N/A
D40: ≥ 65,000 Btuh to < 240,000 Btuh | G40: 7.5 EER | M40: ≥ 65,000 Btuh to < 240,000 Btuh | P40: 7.5 EER
D41: ≥ 240,000 | G41: 7.2 EER | M41: ≥ 240,000 | P41: 7.2 EER
A42: Equipment Model | B42: Tons (use Btuh for CRAC) | C42: Efficiency Rating | D42: Quantity | E42: Equipment Type | G42: Size Category | I42: Incentive
I43: =IF(E43="","",IF(LEFT(E43,2)<>"Ch",B43*D43*IF(VLOOKUP(CONCATENATE(E43,G43),$V$108:$Y$141,2,FALSE)>C43,0,VLOOKUP(CONCATENATE(E43,G43),$V$108:$Y$141,3,FALSE)+(C43-(VLOOKUP(CONCATENATE(E43,G43),$V$108:$Y$141,2,FALSE)))*(VLOOKUP(CONCATENATE(E43,G43),$V$108:$Y$141,4,FALSE))),B43*D43*IF(VLOOKUP(CONCATENATE(E43,G43),$V$108:$Y$141,2,FALSE)<C43,0,VLOOKUP(CONCATENATE(E43,G43),$V$108:$Y$141,3,FALSE)+((VLOOKUP(CONCATENATE(E43,G43),$V$108:$Y$141,2,FALSE))-C43)*(VLOOKUP(CONCATENATE(E43,G43),$V$108:$Y$141,4,FALSE))/0.1))) -> 
A57: HVAC Units Incentive | I57: =SUM(I43:I56) -> 0
A58: * Use SEER for Unitary and Split Units less than 5.4 tons and IEER for units larger than 5.4 tons; values available from CEE 2012 Tier 2; Use IEER for VRF Units; IPLV values based on ASHRAE 90.1-2016; see specifications page for complete list. Attach AHRI Rating Sheet. ** Units with electric resistance heating must have IEER values 0.2 higher than the efficiencies listed. *** Unit efficiency for chillers should be provided in kW per ton – IPLV where IPLV = Integrated Part Load Value; values based on ASHRAE 90.1-2016. Attach manufacturer's rating sheet for credit.
A63: INSTRUCTIONS TO COMPLETE THIS WORKSHEET:
A64: Equipment Model: | B64: Enter the equipment model as shown on the invoice; provide the specification sheet(s) that accompany the model
A65: Tons: | B65: Enter the equipment tonnage from the AHRI or manufacturer specification sheet
A66: Efficiency Rating: | B66: Enter the equipment efficiency rating from the AHRI or manufacturer specification sheet; for chillers, kW/ton = 12/IPLV EER
A67: Quantity: | B67: Enter the number of units that fit this size and efficiency rating
A68: Equipment Type: | B68: Enter the equipment type from the drop-down menu
A69: Size Category: | B69: Enter the equipment size from the drop-down menu
A70: Note: The reference standard in IECC 2018 is ASHRAE 90.1-2016
A72: Guest Room Energy Management System
A73: Type/ Description | C73: Incentive Unit | E73: Unit Size (tons) | G73: Quantity | H73: Incentive/ Ton | I73: Incentive
A74: Hotel Guest Room Occupancy Sensor | C74: Per Ton Per Room | H74: 75 | I74: =IF(G74*H74*E74=0,"",G74*H74*E74) -> 
A75: Hotel Guest Room Occupancy Sensor | C75: Per Ton Per Room | H75: 75 | I75: =IF(G75*H75*E75=0,"",G75*H75*E75) -> 
A76: Hotel Guest Room Occupancy Sensor | C76: Per Ton Per Room | H76: 75 | I76: =IF(G76*H76*E76=0,"",G76*H76*E76) -> 
A77: GREM Incentive | I77: =IF(SUM(I74:I76)=0,"",SUM(I74:I76)) -> 
A79: Total HVAC Incentives | H79: =SUM(I57,I77) -> 0
K81: Unitary and Split Air Conditioning Systems
K82: Air Source Heat Pumps
K83: Chillers: Water-Cooled: Centrifugal
K84: Chillers: Water-Cooled: Scroll, Screw or Reciprocating
K85: Chillers: Air-Cooled
K86: Packaged Terminal AC
K87: Packaged Terminal HP
K88: Variable Refrigerant Flow HP
K91: < 65,000 Btu/h (5.4 tons)
K92: ≥ 65,000 Btu/h and < 135,000 Btu/h (5.4-11.25 tons)
K93: ≥ 135,000 Btu/h and < 240,000 Btu/h (11.25-20 tons)
K94: ≥ 240,000 Btu/h and < 760,000 Btu/h (20-63 Tons)
K95: ≥ 760,000 Btu/h (> 63 tons)
K96: ≤ 75 tons
K97: ≤ 150 tons
K98: > 150 tons
K99: >150 tons and ≤ 300 tons
K100: >300 tons and ≤ 400 tons
K101: > 400 tons and ≤ 600 tons
K102: >600
K103: ALL
S108: Level Normal (2021 V2) | T108: 2021 V2 Rounded | U108: Level Normal (2021 V1) | W108: Level Normal | X108: Incentive | Y108: Bonus | Z108: Level 2 | AA108: Level 3 | AB108: Level 4 | AC108: Min | AD108: Max
S110: 15.00002 | T110: =ROUND(S110,1) -> 15 | U110: 14 | V110: Unitary and Split Air Conditioning Systems< 65,000 Btu/h (5.4 tons) | W110: =T110 -> 15 | X110: 25 | Y110: 15 | Z110: =W110+1 -> 16 | AA110: =Z110+1 -> 17 | AB110: 18 | AC110: 0 | AD110: 5.4
S111: 13.714304 | T111: 13.7 | U111: 12 | V111: Unitary and Split Air Conditioning Systems≥ 65,000 Btu/h and < 135,000 Btu/h (5.4-11.25 tons) | W111: 13.7 | X111: 25 | Y111: 15 | Z111: =W111+1 -> 14.7 | AA111: 15.7 | AB111: 16.7
S112: 13.285732 | T112: 13.3 | U112: 12 | V112: Unitary and Split Air Conditioning Systems≥ 135,000 Btu/h and < 240,000 Btu/h (11.25-20 tons) | W112: 13.3 | X112: 25 | Y112: 15 | Z112: =W112+1 -> 14.3 | AA112: 15.3 | AB112: 16.3 | AC112: 11.25 | AD112: 20
S113: 12.428588 | T113: 12.4 | U113: 10.8 | V113: Unitary and Split Air Conditioning Systems≥ 240,000 Btu/h and < 760,000 Btu/h (20-63 Tons) | W113: 12.4 | X113: 25 | Y113: 15 | Z113: =W110+1 -> 16 | AA113: =Z110+1 -> 17 | AB113: =AA110+1 -> 18 | AC113: 20 | AD113: 63
S114: 12.000016 | T114: 12 | U114: 10.2 | V114: Unitary and Split Air Conditioning Systems≥ 760,000 Btu/h (> 63 tons) | W114: 12 | X114: 25 | Y114: 15 | Z114: =W114+1 -> 13 | AA114: =Z114+1 -> 14 | AB114: 15 | AC114: 63 | AD114: 100000
S115: 15.00002 | T115: 15 | U115: 14 | V115: Air Source Heat Pumps< 65,000 Btu/h (5.4 tons) | W115: 15 | X115: 40 | Y115: 15 | Z115: =W115+1 -> 16 | AA115: 17 | AB115: 18 | AC115: 0 | AD115: 5.4
S116: 12.85716 | T116: 12.9 | U116: 11.6 | V116: Air Source Heat Pumps≥ 65,000 Btu/h and < 135,000 Btu/h (5.4-11.25 tons) | W116: 12.9 | X116: 40 | Y116: 15 | Z116: =W116+1 -> 13.9 | AA116: 14.9 | AB116: 15.9 | AC116: 5.4 | AD116: 11.25
S117: 12.428588 | T117: 12.4 | U117: 11.2 | V117: Air Source Heat Pumps≥ 135,000 Btu/h and < 240,000 Btu/h (11.25-20 tons) | W117: 12.4 | X117: 40 | Y117: 15 | Z117: =W117+1 -> 13.4 | AA117: 14.4 | AB117: 15.4 | AC117: 11.25 | AD117: 20
S118: 11.357158 | T118: 11.4 | U118: 10 | V118: Air Source Heat Pumps≥ 240,000 Btu/h and < 760,000 Btu/h (20-63 Tons) | W118: 11.4 | X118: 40 | Y118: 15 | Z118: =W115+1 -> 16 | AA118: =Z115+1 -> 17 | AB118: =AA115+1 -> 18 | AC118: 20 | AD118: 63
S119: 9.964299 | T119: 10 | U119: 10 | V119: Air Source Heat Pumps≥ 760,000 Btu/h (> 63 tons) | W119: 10 | X119: 40 | Y119: 15 | Z119: =W119+1 -> 11 | AA119: =Z119+1 -> 12 | AB119: =AA119+1 -> 13 | AC119: 63 | AD119: 100000
S120: 0.495 | T120: =S120 -> 0.495 | U120: 0.569 | V120: Chillers: Water-Cooled, Centrifugal***≤ 150 tons | W120: 0.495 | X120: 20 | Y120: 20 | Z120: 0.54 | AA120: =ROUNDUP(W120/0.9*0.7,2) -> 0.39 | AB120: =ROUNDUP(W120/0.9*0.6,2) -> 0.33 | AC120: 0 | AD120: 150
S121: 0.495 | T121: 0.495 | U121: 0.507 | V121: Chillers: Water-Cooled, Centrifugal***>150 tons and ≤ 300 tons | W121: 0.495 | X121: 20 | Y121: 20 | Z121: 0.54 | AA121: 0.39 | AB121: 0.33 | AC121: 150 | AD121: 300
S122: 0.468 | T122: 0.468 | U122: 0.467 | W122: 0.468 | X122: 20 | Y122: 20 | Z122: 0.48 | AA122: 0.37 | AB122: 0.32 | AC122: 300 | AD122: 400
S123: 0.45 | T123: 0.45 | U123: New Size category | V123: Chillers: Water-Cooled, Centrifugal***> 400 tons to ≤ 600 tons | W123: 0.45 | X123: 20 | Y123: 20 | Z123: 0.44 | AA123: 0.35 | AB123: 0.3 | AC123: 400 | AD123: 600
S124: 0.45 | T124: 0.45 | U124: New Size Category | V124: Chillers: Water-Cooled, Centrifugal***> 600 | W124: 0.45 | X124: 20 | Y124: 20 | Z124: 0.42 | AA124: 0.35 | AB124: 0.3 | AC124: 600 | AD124: 10000
S125: 0.54 | T125: 0.54 | U125: 0.592 | V125: Chillers: Water-Cooled: ReciprocatingALL | W125: 0.54 | X125: 20 | Y125: 20 | Z125: 0.54 | AA125: 0.42 | AB125: 0.36 | AC125: 0 | AD125: 75
S126: 0.54 | T126: 0.54 | U126: New Size Category | V126: Chillers: Water Cooled Scroll, Helical-Rotary or Reciprocating***≤ 75 tons | W126: 0.54 | X126: 20 | Y126: 20 | Z126: 0.54 | AA126: 0.42 | AB126: 0.36 | AC126: 0 | AD126: 75
S127: 0.504 | T127: 0.504 | U127: 0.575 | V127: Chillers: Water Cooled Scroll, Helical-Rotary or Reciprocating***> 75 tons and ≤ 150 tons | W127: 0.504 | X127: 20 | Y127: 20 | Z127: 0.54 | AA127: 0.4 | AB127: 0.34 | AC127: 75 | AD127: 150
S128: 0.486 | T128: 0.486 | U128: 0.534 | V128: Chillers: Water Cooled Scroll, Helical-Rotary or Reciprocating***>150 tons and ≤ 300 tons | W128: 0.486 | X128: 20 | Y128: 20 | Z128: 0.5 | AA128: 0.38 | AB128: 0.33 | AC128: 150 | AD128: 300 | AP128: Chillers: Air-Cooled | AQ128: Unitary and Split Air Conditioning Systems | AR128: Chillers: Water Cooled Scroll, Helical-Rotary or Reciprocating*** | AS128: Chillers: Water-Cooled, Centrifugal*** | AT128: Air Source Heat Pumps | AU128: Variable Refrigerant Flow HP | AV128: Packaged Terminal AC | AW128: Packaged Terminal HP | AX128: Computer Room Air Conditioners
S129: 0.468 | T129: 0.468 | U129: 0.486 | V129: Chillers: Water Cooled Scroll, Helical-Rotary or Reciprocating***> 300 tons and ≤ 600 tons | W129: 0.468 | X129: 20 | Y129: 20 | Z129: 0.46 | AA129: 0.37 | AB129: 0.32 | AC129: 300 | AD129: 600 | AP129: ≤ 150 | AQ129: < 65,000 Btu/h (5.4 tons) | AR129: ≤ 75 tons | AS129: ≤ 150 tons | AT129: < 65,000 Btu/h (5.4 tons) | AU129: < 65,000 Btu/h (5.4 tons) | AV129: ALL | AW129: ALL | AX129: < 65,000 Btuh
S130: 0.45 | T130: 0.45 | U130: New Size Category | V130: Chillers: Water Cooled Scroll, Helical-Rotary or Reciprocating***> 600 tons | W130: 0.45 | X130: 20 | Y130: 20 | Z130: 0.42 | AA130: 0.35 | AB130: 0.3 | AC130: 600 | AD130: 10000 | AP130: > 150 | AQ130: ≥ 65,000 Btu/h and < 135,000 Btu/h (5.4-11.25 tons) | AR130: > 75 tons and ≤ 150 tons | AS130: >150 tons and ≤ 300 tons | AT130: ≥ 65,000 Btu/h and < 135,000 Btu/h (5.4-11.25 tons) | AU130: ≥ 65,000 Btu/h and < 135,000 Btu/h (5.4-11.25 tons) | AX130: ≥ 65,000 Btuh to < 240,000 Btuh
S131: 0.788 | T131: 0.788 | U131: 0.867 | V131: Chillers: Air-Cooled≤ 150 | W131: 0.788 | X131: 40 | Y131: 20 | Z131: =ROUND(W131/0.9*0.8,2) -> 0.7 | AA131: 0.62 | AB131: 0.53 | AC131: 0 | AD131: 150 | AQ131: ≥ 135,000 Btu/h and < 240,000 Btu/h (11.25-20 tons) | AR131: >150 tons and ≤ 300 tons | AS131: > 300 tons to ≤ 400 tons | AT131: ≥ 135,000 Btu/h and < 240,000 Btu/h (11.25-20 tons) | AU131: ≥ 135,000 Btu/h and < 240,000 Btu/h (11.25-20 tons) | AX131: ≥ 240,000
S132: 0.771 | T132: 0.771 | U132: 0.867 | V132: Chillers: Air-Cooled> 150 | W132: 0.771 | X132: 40 | Y132: 20 | Z132: =ROUND(W132/0.9*0.8,2) -> 0.69 | AA132: 0.6 | AB132: 0.52 | AC132: 150 | AD132: 100000 | AQ132: ≥ 240,000 Btu/h and < 760,000 Btu/h (20-63 Tons) | AR132: > 300 tons and ≤ 600 tons | AS132: > 400 tons to ≤ 600 tons | AT132: ≥ 240,000 Btu/h and < 760,000 Btu/h (20-63 Tons) | AU132: ≥ 240,000 Btu/h (20 Tons)
S133: =14.5-(0.3*_xlfn.IFNA(INDEX($A$40:$I$53,MATCH("Packaged Terminal AC",$E$40:$E$53,0),2),0)*12000/1000) -> 14.5 | T133: 14.5 | U133: =12.5-(0.213*B43*12000/1000) -> 12.5 | V133: Packaged Terminal ACALL | W133: 14.5 | X133: 50 | Y133: 0 | Z133: =W133+1 -> 15.5 | AA133: =Z133+1 -> 16.5 | AB133: 17.5 | AC133: 0 | AD133: 100000 | AQ133: ≥ 760,000 Btu/h (> 63 tons) | AR133: > 600 tons | AS133: > 600
S134: =14.5-(0.3*_xlfn.IFNA(INDEX($A$40:$I$53,MATCH("Packaged Terminal HP",$E$40:$E$53,0),2),0)*12000/1000) -> 14.5 | T134: 14.5 | U134: =12.3-(0.213*B44*12000/1000) -> 12.3 | V134: Packaged Terminal HPALL | W134: 14.5 | X134: 100 | Y134: 0 | Z134: 15.5 | AA134: 16.5 | AB134: 17.5 | AC134: 0 | AD134: 100000
S135: 15.428592 | T135: =ROUND(S135,1) -> 15.4 | U135: 14.8 | V135: Variable Refrigerant Flow HP≥ 65,000 Btu/h and < 135,000 Btu/h (5.4-11.25 tons) | W135: 15.4 | X135: 40 | Y135: 25 | Z135: 16.4 | AA135: 17.4 | AB135: 18.4 | AC135: 5.4 | AD135: 11.25
S136: 14.678591 | T136: 14.7 | U136: 14.2 | V136: Variable Refrigerant Flow HP≥ 135,000 Btu/h and < 240,000 Btu/h (11.25-20 tons) | W136: 14.7 | X136: 40 | Y136: 25 | Z136: 15.7 | AA136: 16.7 | AB136: 17.7 | AC136: 11.25 | AD136: 20
S137: 13.392875 | T137: 13.4 | U137: 12.7 | V137: Variable Refrigerant Flow HP≥ 240,000 Btu/h (20 Tons) | W137: 13.4 | X137: 40 | Y137: 25 | Z137: 14.4 | AA137: 15.4 | AB137: 16.4 | AC137: 20 | AD137: 63
S138: 13.92859 | T138: 13.9 | U138: 15.6 | V138: Variable Refrigerant Flow HP< 65,000 Btu/h (5.4 tons) | W138: 13.9 | X138: 40 | Y138: 25 | Z138: 14.9 | AA138: 15.9 | AB138: 16.9 | AC138: 63 | AD138: 100000
S139: 8.184 | T139: 8.2 | V139: Computer Room Air Conditioners< 65,000 Btuh | W139: 8.2 | X139: 0.008 | Y139: 0 | Z139: 9.2 | AA139: 10.2 | AB139: 11.2 | AC139: 0 | AD139: 65000
S140: 7.502 | T140: 7.5 | V140: Computer Room Air Conditioners≥ 65,000 Btuh to < 240,000 Btuh | W140: 7.5 | X140: 0.008 | Y140: 0 | Z140: 8.5 | AA140: 9.5 | AB140: 10.5 | AC140: 65000 | AD140: 240000 | AL140: Categories | AM140: Column1 | AN140: Column2
S141: 7.161 | T141: 7.2 | V141: Computer Room Air Conditioners≥ 240,000 | W141: 7.2 | X141: 0.008 | Y141: 0 | Z141: 8.2 | AA141: 9.2 | AB141: 10.2 | AC141: 240000 | AD141: 10000000 | AL141: Unitary and Split Air Conditioning Systems | AM141: UnitarySplit | AN141: 1
AL142: Air Source Heat Pumps | AM142: AirSourceHP | AN142: 2
Z143: **used stated values for Level 2, if available. Else was rounded up to the 10s of watts | AL143: Variable Refrigerant Flow HP | AM143: VRF | AN143: 3
W144: 2.4 | X144: =W144*3.41 -> 8.184 | AL144: Chillers: Water Cooled Scroll, Helical-Rotary or Reciprocating*** | AM144: ChillerHelical | AN144: 4
W145: 2.2 | X145: =W145*3.41 -> 7.502 | AL145: Chillers: Water-Cooled, Centrifugal*** | AM145: ChillerCent | AN145: 5
W146: 2.1 | X146: =W146*3.41 -> 7.161 | AL146: Chillers: Air-Cooled | AM146: ChillerAir | AN146: 6
AL147: Packaged Terminal AC | AM147: PTAC | AN147: 7
AL148: Packaged Terminal HP | AM148: PTHP | AN148: 8
AL149: Computer Room Air Conditioners | AM149: CRAC | AN149: 9
AL152: Test, Category | AM152: Test, Dropdown
AL153: Computer Room Air Conditioner | AM153: < 65,000 Btuh

Sheet Food Service
B1: FOOD SERVICE INCENTIVES
A2: Applicant: fill in gray fields
A3: ENERGY STAR® Ovens & Fryers
A4: Equipment Type | F4: Incentive Unit | G4: Incentive/Unit | I4: # of Units | J4: Incentive | M4: kWh/Unit | N4: kWh Savings
A5: Combination Oven - Full Size | F5: Unit | G5: 800 | J5: =IF(ISBLANK(I5),"",I5*G5) ->  | M5: 6368 | N5: =M5*I5 -> 0
A6: Convection Oven - Half Size | F6: Unit | G6: 100 | M6: 3043 | N6: 0
A7: Convection Oven - Full Size < 5 pans | F7: Unit | G7: 300 | M7: 4633 | N7: 0
A8: Convection Oven - Full size ≥ 5 pans | F8: Unit | G8: 350 | M8: 244 | N8: 0
A9: Commercial Vat Fryer - Standard | F9: Unit | G9: 250 | M9: 3272 | N9: 0
A10: Commercial Vat Fryer - Large | F10: Unit | G10: 300 | M10: 2696 | N10: 0
A11: Ovens & Fryers Incentive | J11: =SUM(J5:K10) -> 0
A13: ENERGY STAR® Steam Cookers
A14: Equipment Type | F14: Incentive Unit | G14: Incentive/Unit | I14: # of Units | J14: Incentive
A15: Boiler Based - 3 Pan | F15: Unit | G15: 1200 | J15: =IF(ISBLANK(I15),"",I15*G15) ->  | M15: 11784 | N15: =M15*I15 -> 0
A16: Boiler Based - 4 Pan | F16: Unit | G16: 1400 | M16: 14553 | N16: 0
A17: Boiler Based - 5 Pan | F17: Unit | G17: 1600 | M17: 17268 | N17: 0
A18: Boiler Based - ≥6 Pan | F18: Unit | G18: 1800 | M18: 19990 | N18: 0
A19: Steam Generator - 3 Pan | F19: Unit | G19: 800 | M19: 9967 | N19: 0
A20: Steam Generator - 4 Pan | F20: Unit | G20: 900 | M20: 12107 | N20: 0
A21: Steam Generator - 5 Pan | F21: Unit | G21: 1000 | M21: 14186 | N21: 0
A22: Steam Generator - ≥6 Pan | F22: Unit | G22: 1200 | M22: 16270 | N22: 0
A23: Steam Coookers Incentive | J23: =SUM(J15:K22) -> 0
A25: ENERGY STAR® Hot Food Holding Cabinet
A26: Equipment Type | F26: Incentive Unit | G26: Incentive/Unit | I26: # of Units | J26: Incentive
A27: Half size | F27: Unit | G27: 125 | J27: =IF(ISBLANK(I27),"",I27*G27) ->  | M27: 1215 | N27: =M27*I27 -> 0
A28: Three-quarter size | F28: Unit | G28: 300 | J28: =IF(ISBLANK(I28),"",I28*G28) ->  | M28: 2770 | N28: =M28*I28 -> 0
A29: Full-size | F29: Unit | G29: 500 | J29: =IF(ISBLANK(I29),"",I29*G29) ->  | M29: 4832 | N29: =M29*I29 -> 0
A30: Hot Food Holding Cabinets Incentive | J30: =SUM(J27:K29) -> 0
A32: ENERGY STAR® High Efficiency Ice Makers
A33: Equipment Type | F33: Installed kWk/100 lbs | G33: Incentive/Unit | I33: # of Units | J33: Incentive
A34: 150 lb/24 hours | F34: Unit | G34: 100 | J34: =IF(ISBLANK(I34),"",I34*G34) ->  | M34: 401 | N34: =M34*I34 -> 0
A35: 250 lb/24 hours | F35: Unit | G35: 125 | M35: 469 | N35: 0
A36: 350 lb/24 hours | F36: Unit | G36: 150 | M36: 357 | N36: 0
A37: 450 lb/24 hours | F37: Unit | G37: 150 | M37: 440 | N37: 0
A38: 750 lb/24 hours | F38: Unit | G38: 200 | M38: 850 | N38: 0
A39: 1500 lb/24 hours | F39: Unit | G39: 250 | M39: 1436 | N39: 0
A40: High Efficiency Ice Makers Incentive | J40: =SUM(J34:K39) -> 0
A42: Total Food Service Equipment Incentives | J42: =SUM(J5:K10,J15:K22,J27:K29,J34:K39) -> 0
A43: I certify that I have not already received an 'at the counter' rebate from a participating distributor for the equipment listed above. I understand that if I have already received a rebate that this application will be cancelled.

Sheet Pool Pumps
A1: POOL PUMP INCENTIVES
A2: Applicant: fill in gray fields at bottom | G2: See specs at the bottom of the page!
A3: Pool Pump (0.5 - 3 HP)
S4: ENERGYSTAR Pool Pump Assumptions
A5: Pump Type | F5: Incentive Unit | G5: Incentive/Unit | I5: Quantity | J5: Incentive | L5: kWh Saved/Unit | M5: Annual kWh Saved | N5: kW Saved/Unit | O5: kW Saved | S5: Rated Hp | T5: Hours, HighSpeed | U5: Hours, LowSpeed | V5: PFR, HighSpeed | W5: EF, HighSpeed | X5: PFR, LowSpeed | Y5: EF, LowSpeed | Z5: kWh, ENERGYSTAR
A6: Energy Star Pump - In-ground | F6: Unit | G6: 100 | J6: =IF(ISBLANK(I6),"",G6*I6) ->  | L6: 307.7 | M6: =L6*$I6 -> 0 | N6: 0.22 | O6: =N6*$I6 -> 0 | S6: <1.25 | T6: 4.3 | U6: 9.7 | V6: 56 | W6: 2.398 | X6: 31 | Y6: 5.407 | Z6: =+((V6*60*$T$6*365)/(W6*1000))+((X6*60*$U$6*365)/(Y6*1000)) -> 3417.059372
A7: CEE Tier 1* Pump - In-ground | F7: Unit | G7: 100 | H7: 100 | J7: =IF(ISBLANK(I7),"",G7*I7) ->  | M7: =L7*$I7 -> 0 | O7: =N7*$I7 -> 0 | S7: 1.25 < HP <1.75 | U7: 0.2085 | V7: 61 | W7: 2.267 | X7: 31.9 | Y7: 5.433 | Z7: =+((V7*60*$T$6*365)/(W7*1000))+((X7*60*$U$6*365)/(Y7*1000)) -> 3781.196487
A8: Energy Star Pump - Above Ground | F8: Unit | G8: 100 | H8: 100 | J8: =IF(ISBLANK(I8),"",G8*I8) ->  | L8: 189.5 | M8: =L8*$I8 -> 0 | N8: 0.48 | O8: =N8*$I8 -> 0 | S8: 1.75 < HP <2.25 | U8: 0.2516 | V8: 66.4 | W8: 1.951 | X8: 33.3 | Y8: 5.221 | Z8: =+((V8*60*$T$6*365)/(W8*1000))+((X8*60*$U$6*365)/(Y8*1000)) -> 4559.862996
A9: CEE Tier 1* Pump - Above Ground | F9: Unit | G9: 100 | J9: =IF(ISBLANK(I9),"",G9*I9) ->  | M9: =L9*$I9 -> 0 | O9: =N9*$I9 -> 0 | S9: 2.25 < HP <2.75 | U9: 0.3081 | V9: 66 | W9: 2.024 | X9: 34 | Y9: 4.796 | Z9: =+((V9*60*$T$6*365)/(W9*1000))+((X9*60*$U$6*365)/(Y9*1000)) -> 4576.728342
A10: Pool Pumps Incentive | J10: =SUM(J6:J9) -> 0 | S10: 2.75 < HP <3.00 | U10: 0.3639 | V10: 74 | W10: 1.617 | X10: 37 | Y10: 4.764 | Z10: =+((V10*60*$T$6*365)/(W10*1000))+((X10*60*$U$6*365)/(Y10*1000)) -> 5959.428448
A11: * If BOTH Energy Star and CEE Tier 1 certified, use the CEE Tier 1 line item(s).

Sheet Industrial
A1: INDUSTRIAL INCENTIVES
A2: Applicant: fill in gray fields
A3: Compressed Air Storage Receiver Tanks
A4: Equipment Size Category | E4: Incentive Unit | F4: Incentive/Unit | G4: Horsepower (HP) | H4: # of Units | I4: Incentive
A5: ≤50 HP | E5: HP | F5: 40 | I5: =IF(ISBLANK(H5),"",F5*G5*H5) -> 
A6: 51-200 HP | E6: HP | F6: 40 | I6: =IF(ISBLANK(H6),"",F6*G6*H6) -> 
A7: Efficient Compressor Air Nozzles Incentive | I7: =SUM(I5:I6) -> 0
A9: VSD Air Compressors
A10: Equipment Type | E10: Incentive Unit | F10: Incentive/Unit | G10: Horsepower (HP) | H10: # of Units | I10: Incentive
A11: Modulating w/ Blowdown <= 50 hp | E11: Per HP | F11: 80 | I11: =IF(ISBLANK(H11),"",F11*G11*H11) -> 
A12: Load/No Load w/ 1 Gallon/CFM <= 50 hp | E12: Per HP | F12: 80
A13: Load/No Load w/ 3 Gallon/CFM <= 50 hp | E13: Per HP | F13: 80
A14: Load/No Load w/ 5 Gallon/CFM <= 50 hp | E14: Per HP | F14: 80
A15: Modulating w/ Blowdown 51-200 hp | E15: Per HP | F15: 100
A16: Load/No Load w/ 1 Gallon/CFM 51-200 hp | E16: Per HP | F16: 100
A17: Load/No Load w/ 3 Gallon/CFM 51-200 hp | E17: Per HP | F17: 100
A18: Load/No Load w/ 5 Gallon/CFM 51-200 hp | E18: Per HP | F18: 100
A19: VSD Air Compressor Incentive | I19: =SUM(I11:I18) -> 0
A21: Efficient Desiccant Compressed Air Dryers
A22: Equipment Type | E22: Incentive Unit | F22: Incentive/Unit | G22: CFM | H22: # of Units | I22: Incentive
A23: Heated - Reciprocating - On/off Control | E23: per CFM | F23: 3 | I23: =IF(ISBLANK(H23),"",F23*G23*H23) -> 
A24: Heated - Reciprocating - Load/Unload | E24: per CFM | F24: 3
A25: Heated - Screw - Load/Unload or Variable Displacement | E25: per CFM | F25: 3
A26: Heated - Screw - VFD | E26: per CFM | F26: 3
A27: Blower Purge w/Compressed Air Cooling - Reciprocating - On/off Control | E27: per CFM | F27: 5
A28: Blower Purge w/Compressed Air Cooling - Reciprocating - Load/Unload | E28: per CFM | F28: 5
A29: Blower Purge w/Compressed Air Cooling - Screw - Load/Unload or Variable Displacement | E29: per CFM | F29: 5
A30: Blower Purge w/Compressed Air Cooling - Screw - VFD | E30: per CFM | F30: 5
A31: Blower Purge "Zero Purge" - Reciprocating - On/off Control | E31: per CFM | F31: 7
A32: Blower Purge "Zero Purge" - Reciprocating - Load/Unload | E32: per CFM | F32: 7
A33: Blower Purge "Zero Purge" - Screw - Load/Unload or Variable Displacement | E33: per CFM | F33: 7
A34: Blower Purge "Zero Purge" - Screw - VFD | E34: per CFM | F34: 7
A35: Efficient Desiccant Compressed Air Dryer Incentive | I35: =SUM(I23:I34) -> 0
A37: Efficient Refrigerated Compressed Air Dryers
A38: Equipment Type | E38: Incentive Unit | F38: Incentive/ Unit | G38: CFM | H38: # of Units | I38: Incentive
A39: Thermal-Mass | E39: Per CFM | F39: 1 | I39: =IF(ISBLANK(H39),"",F39*G39*H39) -> 
A40: VSD | E40: Per CFM | F40: 1 | I40: =IF(ISBLANK(H40),"",F40*G40*H40) -> 
A41: Digital Scroll | E41: Per CFM | F41: 1 | I41: =IF(ISBLANK(H41),"",F41*G41*H41) -> 
A42: Total Efficient Refrigerated Compressed Air Dryer Incentive | I42: =SUM(I39:I41) -> 0
A44: Total Industrial Incentives | I44: =SUM(I7,I19,I35,I42) -> 0

Sheet Custom
D1: CUSTOM INCENTIVES | G1: See specs at the bottom of the page!
A2: Applicant: fill in gray fields | D2: *Please attach supporting documentation as described in the specifications*
A3: Item 1
A4: Description | H4: $/kWh | I4: Subtotal
E5: Annual kWh Savings | H5: 0.08 | I5: =IF(AND(G5>0,G11>0,G13>0),MIN(G5*H5,G11,0.5*G13),0) -> 0
E7: kW Savings
E9: Annual Operating Hours
E11: Incremental Measure Cost
E13: Total Project Cost
A15: Item 2
A16: Description | H16: $/kWh | I16: Subtotal
E17: Annual kWh Savings | H17: 0.08 | I17: =IF(AND(G17>0,G23>0,G25>0),MIN(G17*H17,G23,0.5*G25),0) -> 0
E19: kW Savings
E21: Annual Operating Hours
E23: Incremental Measure Cost
E25: Total Project Cost
A27: Item 3
A28: Description | H28: $/kWh | I28: Subtotal
E29: Annual kWh Savings | H29: 0.08 | I29: =IF(AND(G29>0,G35>0,G37>0),MIN(G29*H29,G35,0.5*G37),0) -> 0
E31: kW Savings
E33: Annual Operating Hours
E35: Incremental Measure Cost
E37: Total Project Cost
A39: Item 4
A40: Description | H40: $/kWh | I40: Subtotal
E41: Annual kWh Savings | H41: 0.08 | I41: =IF(AND(G41>0,G47>0,G49>0),MIN(G41*H41,G47,0.5*G49),0) -> 0
E43: kW Savings
E45: Annual Operating Hours
E47: Incremental Measure Cost
E49: Total Project Cost
A51: Total Custom Incentives | I51: =I5+I17+I29+I41 -> 0
A53: Incremental measure cost (IMC) is the difference between the cost of an energy-efficient piece of equipment and a new
A54: standard-efficiency piece of equipment. The IMC of energy-efficient equipment installed before an old piece of equipment
A55: reaches the end of its life (such as lighting equipment) generally is equal to the total cost of the energy-efficient equipment,
A56: including labor. The IMC of energy-efficient equipment installed at or near the end of life of an old piece of equipment (such as
A57: chillers, motors, air-conditioning units) generally is equal to the difference in cost between the energy-efficient equipment and
A58: the new standard-efficiency piece of equipment, not including labor.
A59: The rebate will be shown as 100% of the Incremental Measure Cost or 50% of the Total Project Cost. All Custom measures subject to approval using the Utility Cost Test (UCT). Submit calculations and costs for assistance.

Sheet NC Whole Bldg
B1: NC WHOLE BUILDING INCENTIVES | G1: See specs at the bottom of the page!
A2: Applicant: fill in gray fields
A3: New Construction Whole Building Performance - 10% to 20% Savings
A4: Please attach supporting documentation as described in the specifications. Savings relative to ASHRAE 90.1 - 2016.
A5: Item 1
A6: Description | H6: $/kWh | I6: Subtotal
E7: Annual kWh Savings | H7: 0.1 | I7: =IF(AND(G7>0,G13>0,G15>0),MIN(G7*H7,G13,0.5*G15),0) -> 0
E9: kW Savings
E11: Annual Operating Hours
E13: Incremental Measure Cost
E15: Total Project Cost
A17: Item 2
A18: Description | H18: $/kWh | I18: Subtotal
E19: Annual kWh Savings | H19: 0.1 | I19: =IF(AND(G19>0,G25>0,G27>0),MIN(G19*H19,G25,0.5*G27),0) -> 0
E21: kW Savings
E23: Annual Operating Hours
E25: Incremental Measure Cost
E27: Total Project Cost
A29: New Construction Whole Building Performance - Greater than 20% Savings
A30: Please attach supporting documentation as described in the specifications. Savings relative to ASHRAE 90.1 - 2016.
A31: Item 1
A32: Description | H32: $/kWh | I32: Subtotal
E33: Annual kWh Savings | H33: 0.12 | I33: =IF(AND(G33>0,G39>0,G41>0),MIN(G33*H33,G39,0.5*G41),0) -> 0
E35: kW Savings
E37: Annual Operating Hours
E39: Incremental Measure Cost
E41: Total Project Cost
A43: Item 2
A44: Description | H44: $/kWh | I44: Subtotal
E45: Annual kWh Savings | H45: 0.12 | I45: =IF(AND(G45>0,G51>0,G53>0),MIN(G45*H45,G51,0.5*G53),0) -> 0
E47: kW Savings
E49: Annual Operating Hours
E51: Incremental Measure Cost
E53: Total Project Cost
A55: Total New Construction Whole Building Incentives | I55: =I7+I19++I33+I45 -> 0
H56: =IF(L55>300000,"Measure Cap Reached","") -> 
